bitfinex-derivatives/quotes_SOLF0:USTF0_20260220
["timestamp","ask_amount","ask_price","bid_price","bid_amount"]
[1771603269674,16.82676703,84.36,84.274,17.9464039]
[1771603270076,10.6748,84.328,84.274,17.9464039]
[1771603270275,0.08156552,84.335,84.277,17.9464039]
[1771603270474,16.82676703,84.36,84.277,17.9464039]
[1771603271587,10.6746,84.329,84.278,17.9464039]
[1771603271882,16.82676703,84.378,84.278,17.9464039]
[1771603272084,10.6723,84.348,84.303,10.6778]
[1771603272276,10.6723,84.348,84.304,17.9464039]
[1771603273287,16.82676703,84.397,84.304,17.9464039]
[1771603273582,10.6671,84.389,84.347,10.6723]
[1771603273887,16.82676703,84.415,84.348,17.9464039]
[1771603274083,16.82676703,84.435,84.348,17.9464039]
[1771603274287,16.82676703,84.46,84.366,17.9464039]
[1771603274485,16.82676703,84.449,84.366,17.9464039]
[1771603274685,10.6658,84.399,84.373,0.08138827]
[1771603274888,16.82676703,84.441,84.374,17.9464039]
[1771603275390,16.82676703,84.441,84.354,17.9464039]
[1771603275692,16.82676703,84.44,84.354,17.9464039]
[1771603275884,16.82676703,84.408,84.306,11.79749306]
[1771603276084,16.82676703,84.408,84.284,35.61]
[1771603276485,16.82676703,84.408,84.284,12.16010724]
[1771603276787,16.82676703,84.408,84.271,166.1638]
[1771603276988,16.82676703,84.408,84.272,35.61]
[1771603276989,10.6686,84.376,84.272,35.61]
[1771603277187,10.6686,84.376,84.281,35.61]
[1771603277589,16.82676703,84.427,84.346,10.6724]
[1771603277791,16.82676703,84.427,84.321,4.53132163]
[1771603278296,16.82676703,84.427,84.338,4.53132163]
[1771603278788,16.82676703,84.427,84.366,0.08173176]
[1771603279390,16.82676703,84.427,84.338,4.53132163]
[1771603280194,0.08102246,84.391,84.338,4.53132163]
[1771603280389,16.82676703,84.39,84.318,4.7332527]
[1771603280790,16.82676703,84.39,84.329,4.13333817]
[1771603281194,0.07791212,84.362,84.285,4.13333817]
[1771603281790,0.07791212,84.362,84.235,166.2343]
[1771603281791,16.95760314,84.372,84.292,4.25488955]
[1771603282185,10.6717,84.352,84.302,4.16736992]
[1771603282495,16.95760314,84.372,84.302,4.16736992]
[1771603282496,16.95760314,84.372,84.324,0.08056974]
[1771603282899,10.6715,84.354,84.324,0.08056974]
[1771603283094,16.95760314,84.372,84.324,0.08056974]
[1771603283287,21.3329,84.394,84.324,0.08056974]
[1771603283288,16.96800801,84.392,84.324,0.08056974]
[1771603283492,10.6701,84.365,84.324,0.08056974]
[1771603283691,16.96800801,84.392,84.324,0.08056974]
[1771603283989,16.96800801,84.392,84.32,4.35955528]
[1771603284186,16.96800801,84.392,84.35,0.08005652]
[1771603284800,17.01615193,84.41,84.35,0.08005652]
[1771603285104,17.01615193,84.41,84.35,4.58445283]
[1771603285405,17.01615193,84.41,84.35,4.50439631]
[1771603285804,17.01615193,84.41,84.372,0.08644904]
[1771603286006,10.6667,84.392,84.372,0.08644904]
[1771603286302,17.01615193,84.41,84.372,0.08644904]
[1771603287605,16.92055026,84.391,84.333,4.73691485]
[1771603288001,10.6692,84.372,84.333,4.73691485]
[1771603288202,16.92055026,84.391,84.333,4.73691485]
[1771603288400,16.87841138,84.418,84.333,4.73691485]
[1771603288802,10.6664,84.394,84.344,5.27260143]
[1771603288995,0.08677883,84.384,84.344,5.27260143]
[1771603289196,10.6635,84.417,84.376,5.1858226]
[1771603289396,16.90836525,84.44,84.376,5.1858226]
[1771603289597,16.90836525,84.44,84.361,0.0905922]
[1771603289800,16.90836525,84.44,84.358,5.29686427]
[1771603289996,16.90836525,84.44,84.359,5.29686427]
[1771603290801,16.90836525,84.44,84.257,166.1911]
[1771603290802,16.96820439,84.411,84.339,5.29098486]
[1771603291900,0.08644844,84.383,84.339,5.29098486]
[1771603292102,17.01269802,84.43,84.339,5.29098486]
[1771603292409,17.01269802,84.43,84.308,21.3543]
[1771603292410,17.01269802,84.461,84.368,5.31241876]
[1771603292609,10.6635,84.417,84.37,5.3485781]
[1771603293310,17.04927017,84.443,84.351,5.3485781]
[1771603293606,17.04927017,84.44,84.351,5.3485781]
[1771603293909,17.00662978,84.413,84.331,5.54199992]
[1771603294412,10.6693,84.371,84.331,5.54199992]
[1771603294611,17.00662978,84.39,84.331,5.54199992]
[1771603294998,10.6689,84.374,84.331,5.54199992]
[1771603295200,17.00662978,84.39,84.285,5.41589888]
[1771603295405,0.09081598,84.369,84.285,5.41589888]
[1771603295601,0.09081598,84.369,84.306,5.52150856]
[1771603295908,17.17022444,84.452,84.33,5.42746156]
[1771603296102,17.17022444,84.452,84.376,5.42746156]
[1771603296606,16.82676703,84.427,84.321,5.53205009]
[1771603297312,16.82676703,84.427,84.366,0.08757568]
[1771603297707,19.98842078,84.408,84.366,0.08757568]
[1771603297903,19.98842078,84.408,84.344,6.41519614]
[1771603298303,19.98842078,84.408,84.379,0.09040727]
[1771603298512,10.6647,84.408,84.379,0.09040727]
[1771603299413,10.6633,84.419,84.379,0.09040727]
[1771603299810,19.98842078,84.444,84.379,0.09040727]
[1771603300001,19.98842078,84.444,84.364,6.77597819]
[1771603300404,10.6616,84.432,84.403,0.08048629]
[1771603300603,19.98842078,84.444,84.403,0.08048629]
[1771603301214,10.6639,84.414,84.37,62.0]
[1771603301513,19.98842078,84.426,84.288,14.13940318]
[1771603303814,19.98842078,84.415,84.333,6.73004068]
[1771603304014,19.98842078,84.362,84.273,6.82375555]
[1771603304409,0.08261171,84.382,84.281,6.82375555]
[1771603304717,19.98842078,84.381,84.308,6.91816127]
[1771603304914,19.98842078,84.422,84.325,7.41862558]
[1771603305214,19.98842078,84.422,84.345,7.41862558]
[1771603305609,19.98842078,84.422,84.358,7.5112437]
[1771603305808,19.98842078,84.466,84.358,7.5112437]
[1771603306208,19.98842078,84.466,84.382,7.5112437]
[1771603307117,19.98842078,84.466,84.416,0.07613457]
[1771603307822,19.98842078,84.434,84.37,10.6693]
[1771603308022,19.98842078,84.434,84.371,7.89254027]
[1771603308414,10.6635,84.417,84.371,7.89254027]
[1771603309614,0.07595162,84.402,84.371,7.89254027]
[1771603309819,10.6623,84.427,84.371,7.89254027]
[1771603310019,10.6623,84.427,84.386,0.07855197]
[1771603310221,19.98842078,84.434,84.386,0.07855197]
[1771603310522,494.3438,84.49,84.386,4.78929071]
[1771603310523,19.98842078,84.471,84.386,4.78929071]
[1771603311018,10.6581,84.46,84.408,10.6645]
[1771603311219,19.98842078,84.471,84.349,56.954]
[1771603311220,19.98842078,84.471,84.409,4.79875578]
[1771603311425,19.98842078,84.471,84.42,0.07466122]
[1771603311917,19.98842078,84.471,84.409,4.79875578]
[1771603312315,19.98842078,84.471,84.437,0.08364734]
[1771603312516,10.6588,84.454,84.437,0.08364734]
[1771603313021,10.6577,84.463,84.437,0.08364734]
[1771603313221,165.6696,84.523,84.437,0.08364734]
[1771603313523,10.6558,84.478,84.437,0.08364734]
[1771603313720,19.98842078,84.5,84.428,5.23674118]
[1771603314123,10.6574,84.465,84.449,0.07591362]
[1771603314329,10.6574,84.465,84.408,10.6645]
[1771603314623,10.6574,84.465,84.409,5.38988866]
[1771603314823,19.98842078,84.482,84.409,5.38988866]
[1771603314824,10.6586,84.456,84.409,5.38988866]
[1771603315025,19.98842078,84.482,84.409,5.38988866]
[1771603315931,19.98842078,84.518,84.409,5.38988866]
[1771603316123,0.07670449,84.454,84.409,5.38988866]
[1771603316325,0.07670449,84.454,84.421,10.6629]
[1771603316525,10.6552,84.483,84.455,0.08274856]
[1771603316917,19.98842078,84.488,84.422,6.93740706]
[1771603317316,19.98842078,84.488,84.424,6.78359487]
[1771603317828,19.98842078,84.488,84.448,0.07637539]
[1771603318526,19.98842078,84.488,84.404,6.86123229]
[1771603319326,19.98842078,84.509,84.441,6.64773646]
[1771603319531,19.98842078,84.509,84.395,6.64773646]
[1771603319826,10.6576,84.464,84.395,6.64773646]
[1771603320027,19.98842078,84.48,84.395,6.64773646]
[1771603320222,20.0685452,84.46,84.395,6.64773646]
[1771603320730,19.98842078,84.485,84.395,6.64773646]
[1771603321122,10.6572,84.467,84.41,17.92002111]
[1771603321631,0.07720438,84.448,84.41,7.25582111]
[1771603321828,0.07720438,84.448,84.391,7.32990867]
[1771603322225,10.6609,84.438,84.391,7.32990867]
[1771603322529,19.98842078,84.449,84.391,7.32990867]
[1771603322725,19.98842078,84.449,84.372,7.61615797]
[1771603322930,19.98842078,84.449,84.345,7.61615797]
[1771603323333,10.6632,84.42,84.345,7.61615797]
[1771603323532,19.98842078,84.431,84.367,7.68945237]
[1771603323833,165.6964,84.509,84.367,7.68945237]
[1771603323834,10.6606,84.44,84.367,7.68945237]
[1771603324129,19.98842078,84.452,84.367,7.68945237]
[1771603324331,10.6572,84.467,84.395,7.61015824]
[1771603324524,19.98842078,84.49,84.395,7.61015824]
[1771603325028,19.98842078,84.49,84.417,8.39647842]
[1771603325728,19.98842078,84.49,84.445,0.07556124]
[1771603326427,10.6547,84.487,84.445,0.07556124]
[1771603326628,21.2994,84.527,84.445,0.07556124]
[1771603326629,20.85340693,84.51,84.445,0.07556124]
[1771603327225,20.85340693,84.51,84.43,8.72110573]
[1771603327624,10.6566,84.472,84.43,8.72110573]
[1771603327929,10.6566,84.472,84.411,8.87436747]
[1771603328231,10.6576,84.464,84.411,8.87436747]
[1771603328436,20.67988895,84.473,84.411,8.87436747]
[1771603329131,0.07911599,84.45,84.412,10.664]
[1771603329634,0.07911599,84.45,84.365,35.61]
[1771603329635,0.07911599,84.45,84.391,9.02072326]
[1771603330028,0.07911599,84.45,84.406,9.01898232]
[1771603330230,20.67988895,84.492,84.406,9.01898232]
[1771603330633,10.6569,84.469,84.415,10.6636]
[1771603331037,0.07820911,84.457,84.415,10.6636]
[1771603331339,10.6586,84.456,84.407,8.98345731]
[1771603331530,0.07820911,84.457,84.407,8.98345731]
[1771603331935,20.67988895,84.475,84.407,8.98345731]
[1771603332137,36.45165672,84.661,84.38,62.0]
[1771603332138,20.67988895,84.499,84.433,9.04915905]
[1771603332535,21.2982,84.531,84.433,9.04915905]
[1771603332536,20.67988895,84.53,84.433,9.04915905]
[1771603332741,0.08030289,84.474,84.433,9.04915905]
[1771603333036,20.67988895,84.53,84.458,0.08991184]
[1771603333341,10.6564,84.473,84.418,10.6633]
[1771603333534,10.6564,84.473,84.371,21.04325772]
[1771603333535,20.67988895,84.484,84.381,9.80824463]
[1771603333735,21.3108,84.481,84.381,9.80824463]
[1771603333933,10.6598,84.446,84.393,10.6665]
[1771603334333,35.61,84.519,84.335,166.0363]
[1771603334334,20.67988895,84.502,84.394,9.80824463]
[1771603334534,20.67988895,84.483,84.394,9.80824463]
[1771603334839,165.6857,84.515,84.394,9.80824463]
[1771603334840,0.09046732,84.428,84.394,9.80824463]
[1771603335229,10.659,84.453,84.43,0.08671516]
[1771603335446,20.67988895,84.457,84.43,0.08671516]
[1771603335740,20.67988895,84.502,84.416,19.65164065]
[1771603335937,20.67988895,84.502,84.381,35.61]
[1771603335938,20.67988895,84.502,84.381,8.98814065]
[1771603336138,20.67988895,84.463,84.387,10.6671]
[1771603336338,20.67988895,84.463,84.381,8.98814065]
[1771603336932,10.6624,84.426,84.381,8.98814065]
[1771603337134,20.67988895,84.44,84.381,8.98814065]
[1771603337336,20.67988895,84.44,84.345,8.6995993]
[1771603337638,10.6634,84.418,84.365,19.42986958]
[1771603337844,20.67988895,84.44,84.344,35.61]
[1771603337845,20.67988895,84.44,84.366,8.75996958]
[1771603338143,20.67988895,84.443,84.345,8.75996958]
[1771603338530,165.7826,84.465,84.345,8.75996958]
[1771603338531,0.07809415,84.411,84.345,8.75996958]
[1771603339134,20.67988895,84.434,84.354,8.57153999]
[1771603339536,20.67988895,84.434,84.36,62.0]
[1771603339934,20.67988895,84.434,84.361,8.63018156]
[1771603340138,20.67988895,84.454,84.361,8.63018156]
[1771603340751,0.07859357,84.416,84.361,8.63018156]
[1771603340954,0.07859357,84.416,84.379,8.44707556]
[1771603341243,20.67988895,84.454,84.379,8.44707556]
[1771603341641,10.6612,84.435,84.389,0.0793846]
[1771603342040,10.6612,84.435,84.379,8.44707556]
[1771603342444,20.67988895,84.454,84.383,8.50399329]
[1771603342635,20.67988895,84.454,84.399,0.09023729]
[1771603343240,20.67988895,84.454,84.383,8.50399329]
[1771603343546,21.3109,84.481,84.36,62.0]
[1771603343547,20.67988895,84.442,84.364,8.73495419]
[1771603344142,10.6655,84.402,84.349,10.6719]
[1771603344333,10.6655,84.402,84.346,8.79049991]
[1771603344743,10.6643,84.411,84.348,8.31904346]
[1771603345348,0.08846525,84.388,84.348,8.31904346]
[1771603345640,0.08846525,84.388,84.352,10.6716]
[1771603345948,0.08846525,84.388,84.348,8.31904346]
[1771603346751,20.67988895,84.419,84.352,8.38891174]
[1771603347142,35.61,84.484,84.361,8.30044649]
[1771603347347,20.67988895,84.527,84.408,6.30044649]
[1771603347539,20.67988895,84.527,84.386,165.9368]
[1771603347540,20.67988895,84.527,84.415,6.35492025]
[1771603347744,20.67988895,84.527,84.424,6.35492025]
[1771603348049,20.67988895,84.509,84.443,10.6601]
[1771603348251,11.72705373,84.565,84.464,6.35492025]
[1771603348252,20.67988895,84.531,84.464,6.35492025]
[1771603349147,20.67988895,84.531,84.489,0.08559094]
[1771603349548,10.6515,84.512,84.489,0.08559094]
[1771603349945,20.67988895,84.531,84.489,0.08559094]
[1771603350148,31.32748895,84.543,84.489,0.08559094]
[1771603350349,20.67988895,84.543,84.489,0.08559094]
[1771603350651,20.67988895,84.543,84.48,62.0]
[1771603351050,20.67988895,84.543,84.508,0.07858112]
[1771603351356,0.07863913,84.52,84.48,62.0]
[1771603352448,0.07863913,84.52,84.451,10.60527979]
[1771603352449,20.75852808,84.52,84.44,10.60527979]
[1771603352748,20.75852808,84.52,84.435,10.6611]
[1771603352749,20.67988895,84.507,84.435,10.6611]
[1771603352950,20.67988895,84.507,84.436,7.52661805]
[1771603353150,20.67988895,84.507,84.439,7.52661805]
[1771603353344,20.67988895,84.53,84.452,7.52661805]
[1771603353549,20.67988895,84.53,84.407,21.20704346]
[1771603353550,20.67988895,84.53,84.433,7.52661805]
[1771603353747,20.67988895,84.53,84.362,21.3407]
[1771603353748,20.67988895,84.528,84.413,7.57827182]
[1771603353948,20.67988895,84.48,84.413,7.57827182]
[1771603354350,20.67988895,84.478,84.413,7.57827182]
[1771603354551,0.07618688,84.479,84.417,7.63193345]
[1771603354741,20.67988895,84.497,84.417,7.63193345]
[1771603355743,10.6549,84.486,84.418,10.6632]
[1771603355956,20.67988895,84.485,84.418,10.6632]
[1771603356143,20.67988895,84.485,84.418,19.58531106]
[1771603356347,20.67988895,84.542,84.421,8.92211106]
[1771603356751,21.2953,84.543,84.435,19.60749103]
[1771603356752,20.67988895,84.506,84.435,19.60749103]
[1771603356943,20.67988895,84.542,84.436,8.94639103]
[1771603357145,20.67988895,84.542,84.445,8.96649925]
[1771603357352,20.67988895,84.542,84.463,8.96649925]
[1771603357860,20.56222607,84.541,84.473,10.6563]
[1771603358355,20.56222607,84.541,84.463,8.96649925]
[1771603358855,20.56222607,84.541,84.499,0.08605767]
[1771603360558,20.56222607,84.519,84.441,9.34503647]
[1771603361254,20.56222607,84.519,84.456,9.37965268]
[1771603361649,20.56222607,84.583,84.456,9.37965268]
[1771603361846,20.56222607,84.544,84.469,9.42798635]
[1771603362564,21.2836,84.59,84.46,10.658]
[1771603362565,10.6508,84.518,84.46,10.658]
[1771603362751,20.56222607,84.525,84.46,10.658]
[1771603362952,20.56222607,84.525,84.461,9.71562645]
[1771603363553,20.56222607,84.525,84.47,62.0]
[1771603363753,10.6501,84.523,84.462,10.6576]
[1771603364357,20.56222607,84.525,84.461,9.71562645]
[1771603364358,10.6513,84.514,84.461,9.71562645]
[1771603364861,21.2892,84.567,84.42,9.74706762]
[1771603364862,20.56222607,84.493,84.42,9.74706762]
[1771603365459,165.5959,84.561,84.441,20.40746762]
[1771603365460,10.6528,84.502,84.441,20.40746762]
[1771603365655,20.56222607,84.514,84.442,9.79377004]
[1771603366252,20.56222607,84.558,84.445,9.79377004]
[1771603366757,10.6481,84.539,84.483,10.655]
[1771603366952,0.08598534,84.51,84.473,9.86449726]
[1771603367360,0.08598534,84.51,84.474,10.6561]
[1771603367559,20.56222607,84.539,84.475,9.91045136]
[1771603367763,20.56222607,84.586,84.475,9.91045136]
[1771603367969,21.2782,84.611,84.501,10.6528]
[1771603367970,10.6452,84.562,84.501,10.6528]
[1771603368157,20.56222607,84.568,84.501,10.6528]
[1771603368754,20.56222607,84.616,84.502,10.30506319]
[1771603368957,20.56222607,84.616,84.55,10.30506319]
[1771603369456,20.56222607,84.613,84.529,10.30506319]
[1771603369768,20.56222607,84.613,84.575,0.08417779]
[1771603369964,20.56222607,84.604,84.54,10.6479]
[1771603370158,20.56222607,84.604,84.529,10.30506319]
[1771603370670,21.2655,84.661,84.529,10.30506319]
[1771603370671,20.56222607,84.624,84.535,9.62878357]
[1771603370866,21.2655,84.661,84.529,12.03496337]
[1771603370867,31.20092607,84.614,84.542,9.62878357]
[1771603371068,20.56222607,84.613,84.542,9.62878357]
[1771603371572,20.56222607,84.609,84.542,9.62878357]
[1771603371870,20.56222607,84.609,84.532,10.6488]
[1771603372070,20.56222607,84.609,84.54,62.0]
[1771603372370,20.56222607,84.601,84.523,9.67194122]
[1771603372868,20.56222607,84.584,84.523,9.67194122]
[1771603373660,10.6427,84.582,84.523,9.67194122]
[1771603374262,20.56222607,84.584,84.513,11.81829682]
[1771603374474,20.56222607,84.584,84.514,9.80161663]
[1771603375072,20.56222607,84.584,84.524,10.6499]
[1771603375271,20.56222607,84.634,84.531,9.86454781]
[1771603375868,10.6397,84.606,84.536,9.90533635]
[1771603376668,10.6397,84.606,84.544,9.94673019]
[1771603377166,20.56222607,84.615,84.544,9.94673019]
[1771603377964,20.56222607,84.635,84.563,10.645]
[1771603378170,20.56222607,84.635,84.563,20.19680093]
[1771603378367,10.6362,84.634,84.567,9.55180093]
[1771603378968,10.6362,84.634,84.55,9.58228551]
[1771603378969,20.56222607,84.673,84.591,8.98886314]
[1771603379270,2.05679229,84.685,84.549,8.98886314]
[1771603379271,9.58228551,84.64,84.549,8.98886314]
[1771603379467,20.56222607,84.639,84.549,8.98886314]
[1771603379664,20.56222607,84.639,84.54,9.58228551]
[1771603379665,20.56222607,84.639,84.53,62.0]
[1771603379863,20.56222607,84.599,84.51,9.58228551]
[1771603380066,20.56222607,84.599,84.511,9.02686804]
[1771603380375,9.58228551,84.6,84.511,9.02686804]
[1771603380376,20.56222607,84.577,84.513,10.6513]
[1771603380969,20.56222607,84.577,84.526,10.6497]
[1771603381172,10.6422,84.586,84.509,11.58214769]
[1771603381173,20.56222607,84.616,84.531,9.06658343]
[1771603381481,20.56222607,84.616,84.558,10.6456]
[1771603381681,20.56222607,84.616,84.551,9.06658343]
[1771603382079,20.56222607,84.636,84.551,9.10364546]
[1771603382668,20.56222607,84.636,84.576,10.6433]
[1771603382875,20.56222607,84.657,84.571,8.56838313]
[1771603383173,20.56222607,84.657,84.591,8.56838313]
[1771603383580,20.56222607,84.647,84.583,10.6425]
[1771603384170,20.56222607,84.635,84.574,10.6436]
[1771603384479,20.6382475,84.623,84.546,8.60399088]
[1771603384877,20.56222607,84.609,84.546,19.25109088]
[1771603385182,20.56222607,84.609,84.503,21.305]
[1771603385183,20.56222607,84.609,84.521,8.74078004]
[1771603385381,10.6398,84.605,84.543,10.6475]
[1771603385985,20.89502034,84.604,84.521,8.74078004]
[1771603386286,18.00796297,84.648,84.454,165.802]
[1771603386287,20.89502034,84.571,84.498,8.83427772]
[1771603386592,20.89502034,84.591,84.511,8.83427772]
[1771603386889,20.89502034,84.587,84.511,8.83427772]
[1771603388079,20.7301026,84.586,84.511,8.83427772]
[1771603388680,10.6426,84.583,84.521,10.6502]
[1771603389080,20.7301026,84.586,84.511,8.83427772]
[1771603389286,0.07623099,84.56,84.511,8.83427772]
[1771603389586,0.07623099,84.56,84.52,18.62783571]
[1771603389791,0.07623099,84.56,84.526,10.6496]
[1771603389992,0.07623099,84.56,84.52,18.62783571]
[1771603390187,20.7301026,84.586,84.52,18.62783571]
[1771603390496,20.7301026,84.609,84.54,9.58228551]
[1771603390888,20.7301026,84.609,84.521,9.0455502]
[1771603390889,31.3722026,84.587,84.545,0.08606425]
[1771603391188,20.7301026,84.587,84.521,9.0455502]
[1771603391992,20.7301026,84.587,84.546,0.08843115]
[1771603392391,10.6408,84.597,84.546,0.08843115]
[1771603392591,20.7301026,84.596,84.546,0.08843115]
[1771603392788,20.7301026,84.596,84.55,10.6467]
[1771603393184,20.7301026,84.596,84.54,10.6478]
[1771603393385,20.7301026,84.596,84.501,10.48898097]
[1771603393386,20.7301026,84.596,84.494,10.48898097]
[1771603393586,20.7301026,84.579,84.484,20.73415343]
[1771603394394,20.7301026,84.579,84.515,10.651]
[1771603394693,20.7301026,84.579,84.503,20.73415343]
[1771603394895,20.7301026,84.579,84.501,11.78802143]
[1771603394896,20.7301026,84.579,84.515,20.73415343]
[1771603395285,10.6444,84.568,84.533,0.07519077]
[1771603395486,20.7301026,84.568,84.533,0.07519077]
[1771603395896,21.2756,84.621,84.533,0.07519077]
[1771603395897,20.7301026,84.592,84.533,0.07519077]
[1771603396494,20.7301026,84.614,84.533,20.73415343]
[1771603396985,20.7301026,84.614,84.554,0.08727534]
[1771603397396,10.6412,84.594,84.554,0.08727534]
[1771603397586,20.7301026,84.614,84.534,20.73415343]
[1771603397997,20.7301026,84.614,84.566,0.08962283]
[1771603398303,20.7301026,84.614,84.534,20.73415343]
[1771603398597,0.08796721,84.582,84.534,20.73415343]
[1771603398792,0.08796721,84.582,84.535,10.6485]
[1771603399390,20.45254127,84.613,84.541,20.73415343]
[1771603399799,20.45254127,84.613,84.551,20.73415343]
[1771603399992,20.45254127,84.613,84.568,10.6443]
[1771603400196,20.45254127,84.613,84.551,20.73415343]
[1771603400698,20.45254127,84.613,84.518,10.48898097]
[1771603400699,18.87230434,84.639,84.561,20.73415343]
[1771603401005,18.87230434,84.639,84.574,0.07945107]
[1771603401395,18.87230434,84.639,84.561,20.73415343]
[1771603401594,18.87230434,84.639,84.56,9.59490566]
[1771603401595,18.87230434,84.639,84.54,30.32905909]
[1771603401797,18.94508583,84.619,84.54,30.32905909]
[1771603402191,0.09002053,84.598,84.54,30.32905909]
[1771603402501,0.09002053,84.598,84.541,20.73415343]
[1771603402702,18.94508583,84.619,84.541,20.73415343]
[1771603403293,9.59490566,84.62,84.521,20.73415343]
[1771603403294,0.08127652,84.588,84.521,20.73415343]
[1771603403898,19.12291652,84.62,84.541,20.73415343]
[1771603404306,10.6389,84.612,84.541,20.73415343]
[1771603404502,19.12291652,84.611,84.541,20.73415343]
[1771603404799,19.12291652,84.611,84.493,21.3077]
[1771603404800,19.16240974,84.599,84.515,20.73415343]
[1771603405002,19.16240974,84.599,84.479,14.06990308]
[1771603405003,19.16240974,84.572,84.491,20.73415343]
[1771603405501,9.59490566,84.62,84.53,9.59490566]
[1771603405705,10.6397,84.605,84.542,10.6476]
[1771603406096,19.23167212,84.605,84.543,10.6475]
[1771603406403,19.23167212,84.605,84.531,20.73415343]
[1771603406404,0.08728345,84.582,84.531,20.73415343]
[1771603406601,16.24288395,84.582,84.507,20.73415343]
[1771603407100,10.6428,84.581,84.523,10.65]
[1771603407297,10.6428,84.581,84.507,20.73415343]
[1771603407298,0.07974225,84.553,84.507,20.73415343]
[1771603408205,0.07974225,84.553,84.49,62.0]
[1771603408400,0.07974225,84.553,84.488,20.73415343]
[1771603408706,16.28706407,84.553,84.482,10.6552]
[1771603408899,16.28706407,84.553,84.468,20.73415343]
[1771603409102,16.93871537,84.549,84.468,20.73415343]
[1771603409297,0.08229435,84.529,84.492,10.6539]
[1771603409503,0.08229435,84.529,84.446,282.74530958]
[1771603409504,0.08229435,84.529,84.471,20.73415343]
[1771603410103,16.93871537,84.549,84.471,20.73415343]
[1771603410309,17.00143852,84.518,84.455,10.6585]
[1771603410503,0.08137614,84.508,84.45,9.59490566]
[1771603410702,0.08137614,84.508,84.45,30.32905909]
[1771603410905,0.08137614,84.508,84.451,20.73415343]
[1771603411107,17.00143852,84.518,84.451,20.73415343]
[1771603411407,17.65429614,84.539,84.465,20.73415343]
[1771603411607,17.71673536,84.559,84.477,20.73415343]
[1771603412305,17.71673536,84.579,84.498,20.73415343]
[1771603412900,9.59490566,84.6,84.53,0.09015304]
[1771603412901,17.81458712,84.599,84.53,0.09015304]
[1771603413410,10.6441,84.571,84.515,10.651]
[1771603414108,17.81458712,84.599,84.523,10.6501]
[1771603414109,10.643,84.579,84.523,10.6501]
[1771603414309,0.08525888,84.551,84.511,20.73415343]
[1771603414999,0.08525888,84.551,84.49,9.59490566]
[1771603415000,17.81458712,84.599,84.513,20.73415343]
[1771603415197,17.81458712,84.599,84.523,0.08887488]
[1771603415597,17.81458712,84.599,84.513,20.73415343]
[1771603415598,10.6439,84.573,84.513,20.73415343]
[1771603416406,10.6439,84.573,84.535,0.08835228]
[1771603416807,10.6428,84.582,84.535,0.08835228]
[1771603417006,17.81458712,84.599,84.535,0.08835228]
[1771603417512,17.81458712,84.599,84.513,20.73415343]
[1771603417705,18.16447622,84.574,84.513,20.73415343]
[1771603417905,18.16447622,84.559,84.49,9.59490566]
[1771603418104,18.16447622,84.559,84.487,22.78119685]
[1771603418611,29.22279396,84.554,84.488,10.6544]
[1771603418807,9.59490566,84.58,84.488,22.78119685]
[1771603419011,18.57649396,84.576,84.491,22.78119685]
[1771603419306,0.07536731,84.529,84.491,22.78119685]
[1771603419507,18.57649396,84.558,84.491,22.78119685]
[1771603419704,9.59490566,84.58,84.525,0.07473831]
[1771603419705,18.63283497,84.579,84.525,0.07473831]
[1771603420406,18.63283497,84.579,84.511,22.78119685]
[1771603420407,18.63283497,84.579,84.522,10.6501]
[1771603420911,18.63283497,84.579,84.544,0.08577376]
[1771603421111,10.6415,84.591,84.544,0.08577376]
[1771603421612,18.77121656,84.599,84.511,22.78119685]
[1771603421812,10.6436,84.575,84.511,22.78119685]
[1771603422004,18.82625335,84.574,84.511,22.78119685]
[1771603422201,18.82625335,84.574,84.465,21.3146]
[1771603422202,18.82625335,84.574,84.49,32.37610251]
[1771603422410,10.6458,84.557,84.496,10.6534]
[1771603422706,18.93914589,84.556,84.49,22.78119685]
[1771603423107,10.6463,84.553,84.498,10.6531]
[1771603423607,0.07833192,84.531,84.49,22.78119685]
[1771603424014,21.2814,84.598,84.49,22.78119685]
[1771603424015,18.9928552,84.578,84.49,22.78119685]
[1771603424314,18.9928552,84.578,84.502,0.07891075]
[1771603424510,18.9928552,84.578,84.51,9.59490566]
[1771603424704,18.9928552,84.578,84.502,0.07891075]
[1771603424906,10.6448,84.565,84.508,10.652]
[1771603425306,18.9928552,84.578,84.508,10.652]
[1771603425505,10.6457,84.559,84.528,0.08983967]
[1771603425908,18.9928552,84.578,84.528,0.08983967]
[1771603426106,10.6445,84.567,84.528,0.08983967]
[1771603426314,18.9928552,84.578,84.528,0.08983967]
[1771603427808,20.46385346,84.6,84.528,22.87103652]
[1771603428209,20.46385346,84.599,84.528,22.87103652]
[1771603428509,20.46385346,84.599,84.506,22.78119685]
[1771603428916,10.6447,84.566,84.513,10.6513]
[1771603429109,0.07882981,84.572,84.506,22.78119685]
[1771603429510,10.6413,84.593,84.541,10.6478]